Cogmind - Beta 13 @@@ ROGUE MODE // 2024.03.28 @ 21:46:10 Player: darki Result: Destroyed by D-53 Grenadier with Mini Grenade Launcher Performance ------------- Evolutions (0) 0 Regions Visited (2) 400 Robots Destroyed (31) 155 Value Destroyed (693) 693 Prototype IDs (0) 0 Alien Tech Used (0) 0 Bonus (0) 0 TOTAL SCORE: 1248 Bonus ------- None Cogmind --------- Core Integrity 0/250 Matter 91/300 Energy 100/100 System Corruption 4% Temperature Cool (0) Movement Core (700) Ox13 Location -10/Mines Parts ------- > --- POWER (1) -------- (None) > --- PROPULSION (2) --- (None) > --- UTILITY (2) ------ High-capacity Storage Unit Seismic Detector > --- WEAPON (2) ------- (None) > --- INVENTORY (20) --- Ion Engine Light Treads Light Treads Medium Storage Unit Sensor Array Improved Terrain Scanner Improved Light Cannon Improved Light Cannon Rocket Launcher Rocket Launcher Peak State ------------ > --- POWER ------------ Ion Engine > --- PROPULSION ------- Aluminum Leg Aluminum Leg > --- UTILITY ---------- Small Storage Unit Seismic Detector > --- WEAPON ----------- Improved Light Cannon Improved Light Cannon > --- INVENTORY -------- Ion Engine Light Treads Light Treads Wheel Wheel Improved Terrain Scanner Assault Rifle Rocket Launcher [Rating: 10] Favorites ----------- Power Ion Engine Engine Ion Engine Propulsion Aluminum Leg Leg Aluminum Leg Utility Seismic Detector Device Seismic Detector Storage High-capacity Storage Unit Weapon Improved Light Cannon Energy Gun EM Pulse Gun Ballistic Gun Assault Rifle Ballistic Cannon Improved Light Cannon Launcher Rocket Launcher Build | -11 -10 -10 ------- Run | Yrd Mat Min Slots Evolved . | . . . Power . | . . . Propulsion . | . . . Utility . | . . . Weapon . | . . . Parts Attached 10 | 1 9 . Power . | . . . Engine . | . . . Core . | . . . Reactor . | . . . Propulsion 3 | . 3 . Treads . | . . . Leg 3 | . 3 . Wheel . | . . . Hover . | . . . Flight . | . . . Utility 3 | 1 2 . Device 1 | 1 . . Storage 2 | . 2 . Processor . | . . . Hackware . | . . . Protection . | . . . Artifact . | . . . Weapon 4 | . 4 . Energy Gun . | . . . Energy Cannon . | . . . Ballistic Gun . | . . . Ballistic Cannon 3 | . 3 . Launcher 1 | . 1 . Special Weapon . | . . . Impact Weapon . | . . . Slashing Weapon . | . . . Piercing Weapon . | . . . Special Melee Weapon . | . . . Unidentified Prototypes . | . . . Parts Lost 6 | . 1 5 Power 1 | . . 1 Propulsion 3 | . 1 2 Utility . | . . . Weapon 2 | . . 2 Highest Loss Streak 3 | . 1 3 To Critical Strikes . | . . . Average Slot Usage (%) 95 | . 96 77 Engine 13 | . 14 3 Leg 26 | . 26 28 Device 14 | . 14 14 Storage 14 | . 14 14 Ballistic Cannon 19 | . 20 16 Launcher 5 | . 5 . Naked Turns . | . . . Heaviest Build 54 | 15 54 54 Greatest Support 20 | 20 20 20 Greatest Overweight (x) 13 | . 5 13 Average Overweight (x) 1 | . 1 2 Largest Inventory Capacity 20 | 8 20 20 Average Capacity 13 | 8 12 20 Most Carried 10 | 7 10 10 Average Carried 8 | 6 8 10 Final Capacity 20 | 8 20 20 Final Carried 10 | 7 10 10 Class Distribution -------------------- 100% | Mutant Dominant Class ---------------- Mutant | -10/Materials Mutant | -10/Mines Resources | -11 -10 -10 ----------- Run | Yrd Mat Min Matter Collected 568 | 222 263 83 Remotely . | . . . Salvage Created 632 | 166 419 47 Parts 52 | 12 37 3 Haulers Intercepted 1 | . 1 . Recyclers Shooed . | . . . Parts Field Recycled . | . . . Retrieved Matter . | . . . Parts Self-Destructed . | . . . Prevented . | . . . Kills | -11 -10 -10 ------- Run | Yrd Mat Min Combat Hostiles Destroyed 17 | . 15 2 Cannons 13 | . 11 2 AOE 4 | . 4 . Classes Destroyed 8 | 2 6 . Worker 5 | . 5 . Builder 1 | . 1 . Tunneler 4 | 4 . . Hauler 1 | . 1 . Recycler 1 | 1 . . Operator 2 | . 2 . Swarmer 3 | . 3 . Grunt 14 | . 12 2 Best Kill Streak 5 | 5 5 2 Combat Bots Only 4 | . 4 2 Max Kills in Single Turn 3 | 1 3 1 Gunslinging . | . . . Exploded 2 | . 2 . Melee . | . . . Uniques/NPCs Destroyed . | . . . Combat | -11 -10 -10 -------- Run | Yrd Mat Min Hostile Shots Fired 85 | . 49 36 Missed 22 | . 16 6 Damage Taken 995 | . 467 528 Core 253 | . 93 160 Absorbed by Shields . | . . . Core Remaining (%) 100 | 100 . . Volleys Fired 66 | 20 40 6 Largest 2 | 2 2 2 Hottest 78 | 60 78 78 Shots Fired 128 | 40 80 8 Gun 40 | 40 . . Cannon 79 | . 71 8 Launcher 9 | . 9 . Special . | . . . Kinetic 99 | 20 71 8 Thermal . | . . . Explosive 9 | . 9 . Electromagnetic 20 | 20 . . Robot Hit Streak 9 | 7 6 9 Robot Miss Streak 4 | 3 4 . Penetration Max . | . . . Secondary Targets . | . . . Shots Hit Robots 62 | 22 32 8 Core Hits 38 | 6 29 3 Critical Kills . | . . . Critical Parts Destroyed . | . . . Critical Strikes 3 | . 3 . Blast 3 | . 3 . Melee Attacks . | . . . Impact . | . . . Slashing . | . . . Piercing . | . . . Sneak Attacks . | . . . Combat Hostiles . | . . . Follow-up Attacks . | . . . Damage Inflicted 1940 | 301 1475 164 Guns 301 | 301 . . Cannons 831 | . 667 164 Explosions 808 | . 808 . Melee . | . . . Ramming . | . . . Kinetic 973 | 142 667 164 Thermal . | . . . Explosive 808 | . 808 . Electromagnetic 159 | 159 . . Impact . | . . . Slashing . | . . . Piercing . | . . . Highest Corruption 4 | . 4 4 Average Corruption 3 | . 3 4 Corruption Purged . | . . . Corruption Blocked . | . . . Effects 19 | . 16 3 Message Errors 8 | . 7 1 Matter Fused 4 | . 4 . Heat Flow Errors 2 | . 2 . Energy Discharges 1 | . 1 . Data Loss (minor) 1 | . 1 . Alerts 3 | . 1 2 Overload Shots . | . . . Overflow Damage 18 | . 18 . Projectiles 14 | . 14 . Explosions 4 | . 4 . Melee . | . . . Knockbacks 9 | . 4 5 Impact . | . . . Kinetic 7 | . 4 3 Secondary 2 | . . 2 Self-Inflicted Damage 72 | . 72 . Shots 2 | . 2 . Rammed . | . . . Targets Rammed . | . . . Kicked . | . . . Crushed . | . . . Highest Temperature 246 | . 246 48 Average Temperature 66 | . 71 14 Received Heat Transfer 393 | . 216 177 Siege Activations . | . . . Robots Corrupted . | . . . Combat Hostiles . | . . . Parts Fried . | . . . Impact Corruptions . | . . . Robots Melted . | . . . Combat Hostiles . | . . . Parts Melted . | . . . Heat Transferred . | . . . Parts Sabotaged . | . . . Parts Stolen . | . . . Parts Stripped . | . . . Power Chain Reactions . | . . . Alert | -11 -10 -10 ------- Run | Yrd Mat Min Peak Influence 308 | 25 308 103 Initial 73 | . 16 73 Average 188 | 8 208 93 Maximum Alert Level 1 | . 1 . Low Security (%) 49 | 100 41 100 Level 1 50 | . 58 . Level 2 . | . . . Level 3 . | . . . Level 4 . | . . . Level 5 . | . . . High Security . | . . . Max Security . | . . . Squads Dispatched 3 | . 3 . Investigation 1 | . 1 . Extermination . | . . . Reinforcement 2 | . 2 . Assault . | . . . Garrison . | . . . Intercept . | . . . Searches Triggered . | . . . Construction Impeded . | . . . Haulers Reinforced . | . . . Active Scanning Responses . | . . . Cargo Convoy Interrupts . | . . . Stealth | -11 -10 -10 --------- Run | Yrd Mat Min Distress Signals 2 | . 2 . Communications Jammed . | . . . Distress Signals . | . . . Times Spotted 31 | . 27 4 Peak Tracking Total 5 | . 5 2 Tactical Retreats . | . . . Traps | -11 -10 -10 ------- Run | Yrd Mat Min Traps Triggered 3 | . 3 . Indirectly . | . . . Trap Hack Attempts . | . . . Triggered . | . . . Disarmed . | . . . Reprogrammed . | . . . Reused . | . . . Traps Extracted . | . . . Installed . | . . . Triggered . | . . . Machines | -11 -10 -10 ---------- Run | Yrd Mat Min Machines Disabled 7 | . 7 . Max in Single Turn 2 | . 2 . Machines Repaired . | . . . Machines Dismantled . | . . . Machines Sabotaged . | . . . Overloaded Fab Kills . | . . . Hacking | -11 -10 -10 --------- Run | Yrd Mat Min Machines Accessed 2 | . 2 . Terminals 2 | . 2 . Fabricators . | . . . Repair Stations . | . . . Recycling Units . | . . . Scanalyzers . | . . . Garrison Access . | . . . Total Hacks 4 | . 4 . Successful 1 | . 1 . Failed 3 | . 3 . Catastrophic 2 | . 2 . Database Lockouts . | . . . Manual 4 | . 4 . Terminals 4 | . 4 . Fabricators . | . . . Repair Stations . | . . . Recycling Units . | . . . Scanalyzers . | . . . Garrison Access . | . . . Terminal Hacks 1 | . 1 . Branch Access Points 1 | . 1 . Fabricator Hacks . | . . . Repair Station Hacks . | . . . Recycling Unit Hacks . | . . . Scanalyzer . | . . . Garrison Access Hacks . | . . . Unauthorized Hacks . | . . . Terminals . | . . . Fabricators . | . . . Repair Stations . | . . . Recycling Units . | . . . Scanalyzers . | . . . Garrison Access . | . . . Data Cores Recovered . | . . . Used . | . . . Hacking Detections 1 | . 1 . Full Trace Events 1 | . 1 . Feedback Events . | . . . Feedback Blocked . | . . . Robot Schematics Acquired . | . . . Robots Built . | . . . Authchips . | . . . Time . | . . . Total Robot Build Rating . | . . . Part Schematics Acquired . | . . . Parts Built . | . . . Authchips . | . . . Time . | . . . Total Part Build Rating . | . . . Parts Repaired . | . . . Time . | . . . Parts Recycled . | . . . Recycled Matter . | . . . Retrieved Matter . | . . . Retrieved Components . | . . . Parts Scanalyzed . | . . . Part Schematics Acquired . | . . . Parts Damaged . | . . . Bothacking | -11 -10 -10 ------------ Run | Yrd Mat Min Used RIF Installer . | . . . Robots Hacked . | . . . Non-combat . | . . . Combat . | . . . Robot Hacks Applied . | . . . Relay Couplers Released . | . . . Fabnet Peak Effective % . | . . . Robots Rewired . | . . . Allies Hacked . | . . . Hacks Repelled . | . . . Allies | -11 -10 -10 -------- Run | Yrd Mat Min Total Allies . | . . . Largest Group . | . . . Highest-Rated Group . | . . . Highest-Rated Ally . | . . . Total Orders . | . . . Ally Attacks . | . . . Total Damage . | . . . Kills . | . . . Allies Corrupted . | . . . Allies Melted . | . . . Intel | -11 -10 -10 ------- Run | Yrd Mat Min Robot Analysis Total . | . . . Derelict Logs Recovered . | . . . Drone Launches . | . . . Drone Recoveries . | . . . Exploration | -11 -10 -10 ------------- Run | Yrd Mat Min Turns Passed 1603 | 94 1389 120 Spaces Moved 670 | 16 613 41 Core 1 | . . 1 Treads . | . . . Legs 669 | 16 613 40 Wheels . | . . . Hover . | . . . Flight . | . . . Fastest Speed 120 | 120 120 260 Average Speed 194 | 120 191 270 Slowest Speed 700 | 120 470 700 Overloaded Moves . | . . . Propulsion Burnouts . | . . . Robots Hopped . | . . . Cave-ins Triggered . | . . . Exploration Rate (%) 36 | 3 93 13 Regions Visited 2 Branch Regions 1 Pre-discovered Areas . | . . . Known Exits Taken 1 | . 1 . Unknown Exits Taken 1 | 1 . . Scrap Searched 1 | . . 1 Spaces Dug 1 | . 1 . Terrain Destroyed 73 | . 73 . Melee . | . . . Projectile 8 | . 8 . AOE 65 | . 65 . Terrain Rammed . | . . . Walls Destroyed . | . . . Machines Disabled . | . . . Actions | -11 -10 -10 --------- Run | Yrd Mat Min Total 851 | 50 754 47 Wait 88 | 13 75 . Move 668 | 15 612 41 Hop . | . . . Pick Up 8 | 1 7 . Fast Attach 4 | 1 3 . Attach 1 | . 1 . Detach 1 | . 1 . Swap 5 | . 5 . Drop 10 | . 10 . Fire 66 | 20 40 6 Melee . | . . . Ram . | . . . Kick . | . . . Crush . | . . . Escape Stasis . | . . . Rewire . | . . . Trap . | . . . Miscellaneous . | . . . Route ------- -11/Scrapyard -10/Materials (discovered 4 exits: [*Mat x3] / *Min) -10/Mines History --------- Turn | Location | Event 1 | -11/Scrapyard | Discovered new exit (range 3) 95 | -11/Scrapyard | Entered Materials 300 | -10/Materials | Build established: Mutant 469 | -10/Materials | Discovered new exit (range 8) 796 | -10/Materials | Discovered new exit (range 16) 978 | -10/Materials | Discovered new exit (range 16) 1000 | -10/Materials | Derelicts attacked the area 1097 | -10/Materials | Identified exit to Mines 1484 | -10/Materials | Entered Mines 1491 | -10/Mines | Core integrity fell below 50% 1588 | -10/Mines | Assembled infested the area 1603 | -10/Mines | Core integrity fell below 20% 1604 | -10/Mines | Destroyed by D-53 Grenadier with Mini Grenade Launcher Last Messages --------------- 01532_ Acquired 1 matter. 01537_ Acquired 3 matter. 01545_ Acquired 5 matter. 01548_ Acquired 3 matter. 01556_ Searching scrap... 01556_ Found Ion Engine. 01556_ Found ECM Suite. 01556_ Found Lgt. Armor Plating. 01556_ Found Sml. Storage Unit. 01556_ Found 15 Matter. 01557_ Acquired 15 matter. 01572_ System corrupted: IFF burst signal emitted. 01588_ ALERT: Infestation in the mines, dispatching Demolisher response squad. 01598_ C-30 ARC bursts open, deploying its payload. 01598_ D-53 Grenadier unfolds itself. 01600_ Imp. Light Cannon destroyed. 01600_ Aluminum Leg destroyed. Map ----- +----------------------------------------------------+ | | | | | | | | | | | | | | | ???????????????????????????????????????????????? | | ???????????????????????????????????????????????? | | ???????????????????????????????????????????????? | | ???????????????????????????????????????????????? | | ???????????????????????????????????????????????? | | ???????????????????????????????????????????????? | | ???????????????????????????????????????????????? | | ???????????????????????????????????????????????? | | ???????????????????????????????????????????????? | | ???????????????????????????????????????????????? | | ???????????????????????????????????????????????? | | ??????????????######???????????????????????????? | | ?????????????## #####??????????????????????? | | ?????????????# # ###????????????????????? | | ?????????????# ##???????????????????? | | ??????????????# #???????????????????? | | ???############# #???????????????????? | | ???# #?# #???????????????????? | | ???# #?## @ ##??????????????????? | | ???# ##### ###????????????????? | | ???# = ! ##???????????????? | | ???# = !*! ##??????????????? | | ???# [ ######### #????????????? | | ???# """ """ #???????#d ### #????????????? | | ???# """ """ #??????# ##??? #????????????? | | ???# """ """ #????? %d##????? #????????????? | | ???# #???? #???????? #???????????? | | ???############??? ##????????? ???????????? | | ?????????????????# ###??????????????????????? | | ?????????????????# ##?????????????????????????? | | ?????????????????# ???????????????????????????? | | ?????????????????# ????????????????????????????? | | ?????????????????# ????????????????????????????? | | ?????????????????#?????????????????????????????? | | ???????????????????????????????????????????????? | | ???????????????????????????????????????????????? | | ???????????????????????????????????????????????? | | ???????????????????????????????????????????????? | | ???????????????????????????????????????????????? | | ???????????????????????????????????????????????? | | ???????????????????????????????????????????????? | | ???????????????????????????????????????????????? | | ???????????????????????????????????????????????? | +----------------------------------------------------+ Best States ------------- Heat Dissipation 25 Energy Generation 10 Energy Capacity 250 Matter Stores 294 Matter Capacity 300 Sight Range 16 Terrain Scan Density 10 Evasion (%) 55 Item Schematics ----------------- None Robot Schematics ------------------ None Fabricated ------------ Nothing Alien Tech Used ----------------- None Achievements -------------- None Challenges ------------ None Game ------ Seed ProcessingCoreInsulator Manual? 0 Play Time 00:14:01 Cumulative 181.9 hours Start 2024.03.28 @ 20:29:50 End 2024.03.28 @ 21:46:10 Sessions 1 Manual Loads 0 Difficulty Rogue Special Mode None Game No. 192 Rogue 192 Adventurer 0 Explorer 0 Win Type - Total 3 Types 3/0/0/0/0/0/0/0/0 Lore% 60 Gallery% 73 Achievement% 58 Wizard Run 0 Options --------- Layout 1 ASCII 0 Keyboard 0 Movement Numpad Keybinds 0 Fullscreen 2 Font 24/Smallcaps Map View 50x35 Zoom Use 0% Tactical HUD 1 Map Filters NONE Filters NONE Steam 1 RUN: 027b83a8-d5f8-4b23-9d88-571756a3d0af